[Event "*** Titled Tuesday Blitz"]
[Site "Chess.com"]
[Date "2020.03.03"]
[Round "3"]
[White "GGX0X0"]
[Black "AniJak"]
[Result "0-1"]
[WhiteElo "2336"]
[BlackElo "2139"]
[TimeControl "180+1"]
[EndTime "9:31:08 PST"]
[Termination "AniJak won by checkmate"]

1. d4 {[%clk 0:03:00.9]} 1... d5 {[%clk 0:02:58.9]} 2. c4 {[%clk 0:03:00.8]}
2... c6 {[%clk 0:02:58.3]} 3. Nc3 {[%clk 0:02:58.3]} 3... Nf6 {[%clk 0:02:57.4]}
4. cxd5 {[%clk 0:02:58.1]} 4... cxd5 {[%clk 0:02:56.9]} 5. f3 {[%clk 0:02:58.2]}
5... Nc6 {[%clk 0:02:55.3]} 6. e4 {[%clk 0:02:57.2]} 6... dxe4 {[%clk
0:02:52.4]} 7. d5 {[%clk 0:02:57]} 7... Ne5 {[%clk 0:02:44]} 8. fxe4 {[%clk
0:02:56.9]} 8... e6 {[%clk 0:02:38.9]} 9. Nf3 {[%clk 0:02:26.6]} 9... Nxf3+
{[%clk 0:02:34.1]} 10. Qxf3 {[%clk 0:02:26.1]} 10... Bb4 {[%clk 0:02:31.8]} 11.
Bg5 {[%clk 0:02:09.8]} 11... h6 {[%clk 0:02:24.3]} 12. Bxf6 {[%clk 0:02:08.1]}
12... Qxf6 {[%clk 0:02:22.8]} 13. Bb5+ {[%clk 0:02:06.3]} 13... Bd7 {[%clk
0:02:19.4]} 14. Bxd7+ {[%clk 0:02:04.7]} 14... Kxd7 {[%clk 0:02:19.5]} 15. dxe6+
{[%clk 0:02:04.6]} 15... Kxe6 {[%clk 0:02:16.5]} 16. Qg4+ {[%clk 0:01:59.6]}
16... Ke7 {[%clk 0:02:13]} 17. Rf1 {[%clk 0:01:50]} 17... Bxc3+ {[%clk
0:02:10.9]} 18. bxc3 {[%clk 0:01:34.5]} 18... Qxc3+ {[%clk 0:02:10.3]} 19. Kf2
{[%clk 0:01:34.4]} 19... Qd4+ {[%clk 0:02:09.5]} 20. Kg3 {[%clk 0:01:33.6]}
20... Qe5+ {[%clk 0:02:03.9]} 21. Kh3 {[%clk 0:01:32.1]} 21... Qe6 {[%clk
0:02:00.7]} 22. Rac1 {[%clk 0:01:13.8]} 22... Qxg4+ {[%clk 0:01:58.4]} 23. Kxg4
{[%clk 0:01:14.7]} 23... Rac8 {[%clk 0:01:55]} 24. Kf4 {[%clk 0:01:14.2]} 24...
Rhd8 {[%clk 0:01:48.2]} 25. Ke5 {[%clk 0:01:13.2]} 25... Rxc1 {[%clk 0:01:30]}
26. Rxc1 {[%clk 0:01:14.1]} 26... Rd2 {[%clk 0:01:26.9]} 27. Rc7+ {[%clk
0:01:13.1]} 27... Rd7 {[%clk 0:01:26.8]} 28. Rc2 {[%clk 0:01:12.1]} 28... g6
{[%clk 0:01:25.7]} 29. g4 {[%clk 0:01:08.3]} 29... f6+ {[%clk 0:01:24.9]} 30.
Kf4 {[%clk 0:01:07.9]} 30... b6 {[%clk 0:01:20.5]} 31. h4 {[%clk 0:01:06.4]}
31... a5 {[%clk 0:01:18.3]} 32. g5 {[%clk 0:01:05]} 32... hxg5+ {[%clk
0:01:17.2]} 33. hxg5 {[%clk 0:01:05.1]} 33... fxg5+ {[%clk 0:01:15.2]} 34. Kxg5
{[%clk 0:01:06]} 34... Rd4 {[%clk 0:01:14.2]} 35. Re2 {[%clk 0:00:57.4]} 35...
Ke6 {[%clk 0:01:13.5]} 36. Kxg6 {[%clk 0:00:55.6]} 36... Ke5 {[%clk 0:01:13.1]}
37. Rb2 {[%clk 0:00:35.7]} 37... Rb4 {[%clk 0:01:12.7]} 38. Rc2 {[%clk
0:00:31.7]} 38... Kxe4 {[%clk 0:01:11.4]} 39. Kf6 {[%clk 0:00:32]} 39... Kd3
{[%clk 0:01:09.3]} 40. Rh2 {[%clk 0:00:31.6]} 40... Kc3 {[%clk 0:01:06.7]} 41.
Ke6 {[%clk 0:00:31.7]} 41... Rb2 {[%clk 0:01:05.7]} 42. Rh3+ {[%clk 0:00:31.8]}
42... Kb4 {[%clk 0:01:01.7]} 43. a3+ {[%clk 0:00:30.8]} 43... Ka4 {[%clk
0:01:00.7]} 44. Kd6 {[%clk 0:00:31.1]} 44... Rb3 {[%clk 0:00:59.3]} 45. Rh2
{[%clk 0:00:29.3]} 45... Kxa3 {[%clk 0:00:58.9]} 46. Kc6 {[%clk 0:00:29.6]}
46... b5 {[%clk 0:00:59]} 47. Kb6 {[%clk 0:00:29.2]} 47... a4 {[%clk 0:00:58.6]}
48. Ka5 {[%clk 0:00:28.9]} 48... b4 {[%clk 0:00:57]} 49. Rh1 {[%clk 0:00:28.7]}
49... Rb2 {[%clk 0:00:50.9]} 50. Kb5 {[%clk 0:00:23.7]} 50... Rf2 {[%clk
0:00:46]} 51. Ra1+ {[%clk 0:00:19.2]} 51... Ra2 {[%clk 0:00:45.9]} 52. Rh1
{[%clk 0:00:18.9]} 52... b3 {[%clk 0:00:44.7]} 53. Rh4 {[%clk 0:00:18.9]} 53...
Kb2 {[%clk 0:00:40]} 54. Kb4 {[%clk 0:00:17.8]} 54... Kc2 {[%clk 0:00:33]} 55.
Rh2+ {[%clk 0:00:17.6]} 55... Kb1 {[%clk 0:00:32.5]} 56. Rh1+ {[%clk 0:00:17.6]}
56... Kc2 {[%clk 0:00:32.8]} 57. Rh2+ {[%clk 0:00:18.5]} 57... Kd3 {[%clk
0:00:32.7]} 58. Rh3+ {[%clk 0:00:18.8]} 58... Kd2 {[%clk 0:00:30.3]} 59. Rh2+
{[%clk 0:00:18.8]} 59... Ke3 {[%clk 0:00:30.4]} 60. Rh3+ {[%clk 0:00:19]} 60...
Kf2 {[%clk 0:00:30.5]} 61. Rh1 {[%clk 0:00:18.2]} 61... b2 {[%clk 0:00:28.4]}
62. Rb1 {[%clk 0:00:17.6]} 62... a3 {[%clk 0:00:28.7]} 63. Kb3 {[%clk
0:00:10.8]} 63... Ra1 {[%clk 0:00:29]} 64. Kc2 {[%clk 0:00:10.8]} 64... Rxb1
{[%clk 0:00:28.5]} 65. Kxb1 {[%clk 0:00:11.7]} 65... Ke2 {[%clk 0:00:28.9]} 66.
Ka2 {[%clk 0:00:12]} 66... Kd2 {[%clk 0:00:29.2]} 67. Kb1 {[%clk 0:00:12.4]}
67... Kc3 {[%clk 0:00:29.5]} 68. Ka2 {[%clk 0:00:12.5]} 68... Kc2 {[%clk
0:00:29.8]} 69. Kxa3 {[%clk 0:00:12.6]} 69... b1=Q {[%clk 0:00:29.4]} 70. Ka4
{[%clk 0:00:13.5]} 70... Kc3 {[%clk 0:00:29.6]} 71. Ka5 {[%clk 0:00:14]} 71...
Kc4 {[%clk 0:00:29.7]} 72. Ka6 {[%clk 0:00:14.9]} 72... Kc5 {[%clk 0:00:29.5]}
73. Ka7 {[%clk 0:00:15.8]} 73... Kc6 {[%clk 0:00:29.5]} 74. Ka8 {[%clk
0:00:16.7]} 74... Qb7# {[%clk 0:00:29.4]} 0-1

[Event "*** Titled Tuesday Blitz"]
[Site "Chess.com"]
[Date "2020.03.03"]
[Round "3"]
[White "TwentyHourADay"]
[Black "Ginger_GM"]
[Result "1/2-1/2"]
[WhiteElo "2309"]
[BlackElo "2579"]
[TimeControl "180+1"]
[EndTime "9:31:15 PST"]
[Termination "Game drawn by agreement"]

1. Nf3 {[%clk 0:03:00.9]} 1... f5 {[%clk 0:02:59.3]} 2. h3 {[%clk 0:02:58.8]}
2... d6 {[%clk 0:02:57.2]} 3. d4 {[%clk 0:02:44.1]} 3... Nf6 {[%clk 0:02:52.1]}
4. Nc3 {[%clk 0:02:43.7]} 4... g6 {[%clk 0:02:14.9]} 5. g4 {[%clk 0:02:41.2]}
5... Bg7 {[%clk 0:02:12.2]} 6. gxf5 {[%clk 0:02:34.4]} 6... Bxf5 {[%clk
0:02:11.8]} 7. Nh4 {[%clk 0:02:34.6]} 7... Qd7 {[%clk 0:02:11.6]} 8. Nxf5 {[%clk
0:02:32.4]} 8... Qxf5 {[%clk 0:02:11]} 9. Qd3 {[%clk 0:02:32.5]} 9... Qxd3
{[%clk 0:02:05.9]} 10. cxd3 {[%clk 0:02:32.5]} 10... Nc6 {[%clk 0:02:05.5]} 11.
e3 {[%clk 0:02:30.1]} 11... e5 {[%clk 0:02:04.7]} 12. dxe5 {[%clk 0:02:26.6]}
12... dxe5 {[%clk 0:01:58]} 13. a3 {[%clk 0:02:21.7]} 13... O-O-O {[%clk
0:01:55.9]} 14. Bd2 {[%clk 0:02:13.8]} 14... Rhe8 {[%clk 0:01:33.9]} 15. Ne4
{[%clk 0:02:04.8]} 15... Nxe4 {[%clk 0:01:23.7]} 16. dxe4 {[%clk 0:02:04.6]}
16... Rf8 {[%clk 0:01:18.1]} 17. Bc4 {[%clk 0:01:55.5]} 17... Bf6 {[%clk
0:01:09.2]} 18. h4 {[%clk 0:01:52.4]} 18... Be7 {[%clk 0:01:07]} 19. b4 {[%clk
0:01:42]} 19... a6 {[%clk 0:01:06.6]} 20. Bd5 {[%clk 0:01:37.4]} 20... Bd6
{[%clk 0:01:04.6]} 21. Bc3 {[%clk 0:01:32.9]} 21... Ne7 {[%clk 0:01:03.9]} 22.
Be6+ {[%clk 0:01:31.8]} 22... Kb8 {[%clk 0:01:04.2]} 23. Rd1 {[%clk 0:01:30]}
23... Nc8 {[%clk 0:00:59.9]} 24. h5 {[%clk 0:01:26.6]} 24... g5 {[%clk 0:00:59]}
25. h6 {[%clk 0:01:25.3]} 25... Ne7 {[%clk 0:00:58.2]} 26. Ke2 {[%clk
0:01:19.7]} 26... Rf6 {[%clk 0:00:57.5]} 27. Bg4 {[%clk 0:01:15]} 27... Rdf8
{[%clk 0:00:57]} 28. Rh2 {[%clk 0:01:08.4]} 28... Ng6 {[%clk 0:00:52.1]} 29. Bf5
{[%clk 0:01:04.7]} 29... R8f7 {[%clk 0:00:48]} 30. Rg1 {[%clk 0:00:58.1]} 30...
Nh4 {[%clk 0:00:45.8]} 31. Rxg5 {[%clk 0:00:58.1]} 31... Nxf5 {[%clk 0:00:46.1]}
32. exf5 {[%clk 0:00:59]} 32... Rxf5 {[%clk 0:00:46.6]} 33. Rxf5 {[%clk
0:00:59.2]} 33... Rxf5 {[%clk 0:00:46.8]} 34. e4 {[%clk 0:00:53.6]} 34... Rf6
{[%clk 0:00:44.9]} 35. Rh5 {[%clk 0:00:51.2]} 35... Re6 {[%clk 0:00:41.7]} 36.
a4 {[%clk 0:00:49.9]} 36... Kc8 {[%clk 0:00:41.4]} 37. Kf3 {[%clk 0:00:48.6]}
37... Kd7 {[%clk 0:00:40.3]} 38. Ke3 {[%clk 0:00:46.7]} 38... Ke7 {[%clk
0:00:38.6]} 39. f3 {[%clk 0:00:42.8]} 39... b5 {[%clk 0:00:36.9]} 40. axb5
{[%clk 0:00:42.5]} 40... axb5 {[%clk 0:00:37.1]} 41. Rg5 {[%clk 0:00:33]} 41...
Rxh6 {[%clk 0:00:36.7]} 42. Bxe5 {[%clk 0:00:33.3]} 42... Rh1 {[%clk 0:00:34.9]}
43. Bxd6+ {[%clk 0:00:32.8]} 43... cxd6 {[%clk 0:00:35]} 44. Rxb5 {[%clk
0:00:33]} 44... h5 {[%clk 0:00:34.1]} 45. Kf4 {[%clk 0:00:31]} 45... Ke6 {[%clk
0:00:28.3]} 46. Rg5 {[%clk 0:00:29.6]} 46... h4 {[%clk 0:00:27.3]} 47. b5 {[%clk
0:00:29.1]} 47... h3 {[%clk 0:00:26.9]} 48. Rh5 {[%clk 0:00:29.1]} 48... h2
{[%clk 0:00:26.3]} 49. b6 {[%clk 0:00:29.3]} 49... Rb1 {[%clk 0:00:25.6]} 50.
Rxh2 {[%clk 0:00:28.6]} 50... Rxb6 {[%clk 0:00:26]} 51. Rh6+ {[%clk 0:00:28.9]}
51... Ke7 {[%clk 0:00:26.1]} 52. Rh7+ {[%clk 0:00:28.2]} 52... Ke6 {[%clk
0:00:26.1]} 53. Rh6+ {[%clk 0:00:28.2]} 53... Ke7 {[%clk 0:00:26.3]} 54. Rg6
{[%clk 0:00:28.5]} 54... Rb3 {[%clk 0:00:25.6]} 55. Rg5 {[%clk 0:00:27.9]} 55...
Ke6 {[%clk 0:00:25.4]} 56. Ra5 {[%clk 0:00:27.8]} 56... Rc3 {[%clk 0:00:25.3]}
57. Ra6 {[%clk 0:00:27.7]} 57... Ke7 {[%clk 0:00:24.9]} 58. Kg4 {[%clk
0:00:26.6]} 58... Rc1 {[%clk 0:00:24.1]} 59. Ra5 {[%clk 0:00:26.4]} 59... Ke6
{[%clk 0:00:24.1]} 60. Ra6 {[%clk 0:00:25.7]} 60... Rg1+ {[%clk 0:00:23.5]} 61.
Kf4 {[%clk 0:00:25.8]} 61... Re1 {[%clk 0:00:24.2]} 62. Ra5 {[%clk 0:00:22.9]}
62... Re2 {[%clk 0:00:24]} 63. Rh5 {[%clk 0:00:22.5]} 63... Re1 {[%clk
0:00:24.1]} 64. Rh6+ {[%clk 0:00:22.8]} 64... Ke7 {[%clk 0:00:24.6]} 65. Kf5
{[%clk 0:00:22.7]} 65... Re3 {[%clk 0:00:24]} 66. f4 {[%clk 0:00:22.6]} 66...
Kd7 {[%clk 0:00:24.3]} 67. Rh7+ {[%clk 0:00:22]} 67... Kc6 {[%clk 0:00:24.3]}
68. e5 {[%clk 0:00:22]} 68... dxe5 {[%clk 0:00:24.2]} 69. fxe5 {[%clk
0:00:22.2]} 69... Re1 {[%clk 0:00:20.6]} 70. Kf6 {[%clk 0:00:20.8]} 70... Rf1+
{[%clk 0:00:20.3]} 71. Ke7 {[%clk 0:00:21.2]} 71... Ra1 {[%clk 0:00:18.6]} 72.
Rh6+ {[%clk 0:00:20.5]} 72... Kd5 {[%clk 0:00:18.5]} 73. Rd6+ {[%clk 0:00:19.8]}
73... Kxe5 {[%clk 0:00:18.2]} 74. Re6+ {[%clk 0:00:20.2]} 74... Kf5 {[%clk
0:00:18.3]} 75. Rf6+ {[%clk 0:00:20.3]} 1/2-1/2

[Event "*** Titled Tuesday Blitz"]
[Site "Chess.com"]
[Date "2020.03.03"]
[Round "3"]
[White "GMSrinath"]
[Black "korbul"]
[Result "1-0"]
[WhiteElo "2884"]
[BlackElo "2553"]
[TimeControl "180+1"]
[EndTime "9:31:25 PST"]
[Termination "GMSrinath won by resignation"]

1. c4 {[%clk 0:02:54.9]} 1... e6 {[%clk 0:02:59.4]} 2. Nf3 {[%clk 0:02:54.1]}
2... d5 {[%clk 0:02:59.2]} 3. e3 {[%clk 0:02:54.2]} 3... Nf6 {[%clk 0:02:59.2]}
4. b3 {[%clk 0:02:54.7]} 4... Nbd7 {[%clk 0:02:58.3]} 5. Bb2 {[%clk 0:02:55.3]}
5... a6 {[%clk 0:02:57.9]} 6. d4 {[%clk 0:02:55.9]} 6... c6 {[%clk 0:02:57.5]}
7. Bd3 {[%clk 0:02:56.4]} 7... Bd6 {[%clk 0:02:56.7]} 8. Nc3 {[%clk 0:02:57]}
8... Qe7 {[%clk 0:02:56.5]} 9. O-O {[%clk 0:02:57.5]} 9... dxc4 {[%clk
0:02:55.3]} 10. bxc4 {[%clk 0:02:56.6]} 10... e5 {[%clk 0:02:55.5]} 11. Qc2
{[%clk 0:02:46.4]} 11... O-O {[%clk 0:02:52.8]} 12. Ne4 {[%clk 0:02:40.9]} 12...
Nxe4 {[%clk 0:02:32.2]} 13. Bxe4 {[%clk 0:02:41.8]} 13... g6 {[%clk 0:02:30.7]}
14. c5 {[%clk 0:02:18]} 14... Bc7 {[%clk 0:02:29.7]} 15. Rac1 {[%clk 0:02:05.2]}
15... exd4 {[%clk 0:02:09.7]} 16. Bxd4 {[%clk 0:01:47.4]} 16... Ne5 {[%clk
0:01:55]} 17. Qc3 {[%clk 0:01:21.4]} 17... Re8 {[%clk 0:01:43.2]} 18. Rfd1
{[%clk 0:01:15.7]} 18... Bg4 {[%clk 0:01:40.2]} 19. h3 {[%clk 0:00:26.9]} 19...
Nxf3+ {[%clk 0:01:09.2]} 20. Bxf3 {[%clk 0:00:27.8]} 20... Bxf3 {[%clk
0:01:08.3]} 21. gxf3 {[%clk 0:00:28.7]} 21... Qg5+ {[%clk 0:00:59.3]} 22. Kf1
{[%clk 0:00:28.2]} 22... Qf5 {[%clk 0:00:56.5]} 23. Ke2 {[%clk 0:00:18.3]} 23...
Rad8 {[%clk 0:00:54.3]} 24. Rb1 {[%clk 0:00:13.8]} 24... Rd7 {[%clk 0:00:36.2]}
25. Rxb7 {[%clk 0:00:11.2]} 25... Ba5 {[%clk 0:00:35.9]} 26. Qxa5 {[%clk
0:00:05.9]} 26... Rxb7 {[%clk 0:00:35.5]} 27. Qxa6 {[%clk 0:00:05]} 27... Rc7
{[%clk 0:00:28.7]} 28. Rd2 {[%clk 0:00:05.4]} 28... Rcc8 {[%clk 0:00:28.6]} 29.
Qd3 {[%clk 0:00:05.3]} 29... Qxd3+ {[%clk 0:00:27.7]} 30. Rxd3 {[%clk
0:00:04.5]} 30... Ra8 {[%clk 0:00:28.6]} 31. a3 {[%clk 0:00:04.8]} 31... Reb8
{[%clk 0:00:28.4]} 32. Be5 {[%clk 0:00:04.3]} 32... Rb5 {[%clk 0:00:27]} 33. Bd6
{[%clk 0:00:04.2]} 33... Rba5 {[%clk 0:00:27.1]} 34. Rb3 {[%clk 0:00:04.8]}
34... Rxa3 {[%clk 0:00:26.6]} 35. Rb6 {[%clk 0:00:05.5]} 35... R3a6 {[%clk
0:00:26.6]} 36. Rb7 {[%clk 0:00:06]} 36... R6a7 {[%clk 0:00:26.6]} 37. Rb6
{[%clk 0:00:05.3]} 37... Ra6 {[%clk 0:00:26.8]} 38. Rb7 {[%clk 0:00:05.9]} 38...
f6 {[%clk 0:00:27.7]} 39. Kf1 {[%clk 0:00:06.1]} 39... Re8 {[%clk 0:00:26.5]}
40. Kg2 {[%clk 0:00:06.2]} 40... Ra2 {[%clk 0:00:24.1]} 41. e4 {[%clk
0:00:05.3]} 41... Rd2 {[%clk 0:00:22.5]} 42. Rb6 {[%clk 0:00:05.4]} 42... Rc8
{[%clk 0:00:21.8]} 43. Kg3 {[%clk 0:00:05.8]} 43... f5 {[%clk 0:00:22]} 44. exf5
{[%clk 0:00:05.3]} 44... gxf5 {[%clk 0:00:21.7]} 45. Rb7 {[%clk 0:00:06.2]}
45... Rd5 {[%clk 0:00:21.1]} 46. Kf4 {[%clk 0:00:05.8]} 46... h6 {[%clk
0:00:20.3]} 47. Re7 {[%clk 0:00:05]} 47... Rf8 {[%clk 0:00:16.7]} 48. Re6 {[%clk
0:00:05]} 48... Rf7 {[%clk 0:00:14.8]} 49. Rxh6 {[%clk 0:00:05.6]} 49... Rd4+
{[%clk 0:00:15]} 50. Ke3 {[%clk 0:00:05]} 50... Rd5 {[%clk 0:00:13.2]} 51. Re6
{[%clk 0:00:05.5]} 51... f4+ {[%clk 0:00:12.3]} 52. Ke4 {[%clk 0:00:04.5]} 52...
Rd1 {[%clk 0:00:11.5]} 53. Rg6+ {[%clk 0:00:04.1]} 53... Kh7 {[%clk 0:00:11.3]}
54. Rg4 {[%clk 0:00:05]} 54... Re1+ {[%clk 0:00:10.6]} 55. Kd3 {[%clk
0:00:05.6]} 55... Re6 {[%clk 0:00:08]} 56. Bxf4 {[%clk 0:00:05.2]} 56... Ref6
{[%clk 0:00:07.4]} 57. Be3 {[%clk 0:00:05.2]} 57... Rxf3 {[%clk 0:00:07.2]} 58.
Rh4+ {[%clk 0:00:06.1]} 58... Kg6 {[%clk 0:00:06.8]} 59. Rh6+ {[%clk 0:00:06.5]}
59... Kf5 {[%clk 0:00:06.2]} 60. Rxc6 {[%clk 0:00:07.4]} 60... Rxh3 {[%clk
0:00:06.4]} 61. Rd6 {[%clk 0:00:08]} 61... Ke5 {[%clk 0:00:06.1]} 62. Rd8 {[%clk
0:00:07.6]} 62... Rc7 {[%clk 0:00:05.6]} 63. Kc4 {[%clk 0:00:07]} 63... Ke6
{[%clk 0:00:04.3]} 64. Rd6+ {[%clk 0:00:06.2]} 64... Ke7 {[%clk 0:00:04.2]} 65.
Bg5+ {[%clk 0:00:06.4]} 65... Kf7 {[%clk 0:00:04.5]} 66. f4 {[%clk 0:00:05.8]}
66... Rh1 {[%clk 0:00:03.4]} 67. Rd5 {[%clk 0:00:06]} 67... Rc1+ {[%clk
0:00:02.6]} 68. Kd4 {[%clk 0:00:06.6]} 68... Rd1+ {[%clk 0:00:02.7]} 69. Ke5
{[%clk 0:00:07]} 69... Rxd5+ {[%clk 0:00:03]} 70. Kxd5 {[%clk 0:00:07.9]} 70...
Rd7+ {[%clk 0:00:02.9]} 71. Kc6 {[%clk 0:00:08.1]} 71... Rd1 {[%clk 0:00:03.8]}
72. Kc7 {[%clk 0:00:07.9]} 72... Ke6 {[%clk 0:00:04]} 73. c6 {[%clk 0:00:07.8]}
73... Rc1 {[%clk 0:00:03.9]} 74. f5+ {[%clk 0:00:07.5]} 74... Kxf5 {[%clk
0:00:03.8]} 75. Bxc1 {[%clk 0:00:08.4]} 75... Ke6 {[%clk 0:00:04.3]} 76. Kb7
{[%clk 0:00:09.3]} 76... Kd6 {[%clk 0:00:04.3]} 77. c7 {[%clk 0:00:10.2]} 77...
Kd7 {[%clk 0:00:04.7]} 78. c8=Q+ {[%clk 0:00:11.1]} 1-0

[Event "*** Titled Tuesday Blitz"]
[Site "Chess.com"]
[Date "2020.03.03"]
[Round "3"]
[White "Atanejhad"]
[Black "ural58"]
[Result "0-1"]
[WhiteElo "2602"]
[BlackElo "2431"]
[TimeControl "180+1"]
[EndTime "9:31:48 PST"]
[Termination "ural58 won on time"]

1. d4 {[%clk 0:03:00.9]} 1... d5 {[%clk 0:02:51.6]} 2. c4 {[%clk 0:03:01.8]}
2... e5 {[%clk 0:02:51.3]} 3. dxe5 {[%clk 0:03:00]} 3... d4 {[%clk 0:02:48.9]}
4. a3 {[%clk 0:02:56.1]} 4... Nc6 {[%clk 0:02:43.8]} 5. Nf3 {[%clk 0:02:52.4]}
5... g6 {[%clk 0:02:42.8]} 6. Bf4 {[%clk 0:02:51.4]} 6... Bg7 {[%clk 0:02:36.7]}
7. e3 {[%clk 0:02:49.9]} 7... Bg4 {[%clk 0:02:26]} 8. h3 {[%clk 0:02:41.8]} 8...
Bxf3 {[%clk 0:02:17.9]} 9. Qxf3 {[%clk 0:02:41.3]} 9... Nge7 {[%clk 0:02:15.2]}
10. Nd2 {[%clk 0:02:33.6]} 10... dxe3 {[%clk 0:02:08.6]} 11. Qxe3 {[%clk
0:02:24.7]} 11... Nf5 {[%clk 0:02:01.2]} 12. Qe4 {[%clk 0:02:23.7]} 12... Qd4
{[%clk 0:01:58.8]} 13. Qxd4 {[%clk 0:02:17]} 13... Nfxd4 {[%clk 0:01:57.9]} 14.
O-O-O {[%clk 0:02:14.3]} 14... O-O-O {[%clk 0:01:53.3]} 15. Bg5 {[%clk
0:02:09.4]} 15... Rd7 {[%clk 0:01:42.2]} 16. f4 {[%clk 0:01:59.8]} 16... Ne6
{[%clk 0:01:29.2]} 17. Ne4 {[%clk 0:01:50.7]} 17... Rxd1+ {[%clk 0:01:29]} 18.
Kxd1 {[%clk 0:01:48.6]} 18... h6 {[%clk 0:01:28]} 19. Bf6 {[%clk 0:01:46.6]}
19... Bxf6 {[%clk 0:01:28.3]} 20. exf6 {[%clk 0:01:45.4]} 20... Nxf4 {[%clk
0:01:26.3]} 21. g3 {[%clk 0:01:44.6]} 21... Rd8+ {[%clk 0:01:23.6]} 22. Kc1
{[%clk 0:01:43.5]} 22... Nd3+ {[%clk 0:01:19.5]} 23. Kc2 {[%clk 0:01:38.2]}
23... Ne1+ {[%clk 0:01:13.6]} 24. Kc3 {[%clk 0:01:37.5]} 24... Re8 {[%clk
0:01:02.1]} 25. Bd3 {[%clk 0:01:20.2]} 25... Nxd3 {[%clk 0:00:58.8]} 26. Kxd3
{[%clk 0:01:21.1]} 26... Ne5+ {[%clk 0:00:59]} 27. Kc3 {[%clk 0:01:13.7]} 27...
Nxc4 {[%clk 0:00:57.5]} 28. Nf2 {[%clk 0:01:09.6]} 28... Ne3 {[%clk 0:00:51]}
29. Ng4 {[%clk 0:01:06.8]} 29... h5 {[%clk 0:00:46.3]} 30. Nh6 {[%clk
0:01:04.2]} 30... Nd5+ {[%clk 0:00:44.4]} 31. Kd4 {[%clk 0:01:00.2]} 31... Nxf6
{[%clk 0:00:45.3]} 32. Nxf7 {[%clk 0:00:58.1]} 32... Re2 {[%clk 0:00:44.8]} 33.
b4 {[%clk 0:00:50.3]} 33... Rd2+ {[%clk 0:00:24.2]} 34. Kc4 {[%clk 0:00:46.3]}
34... Rf2 {[%clk 0:00:19.2]} 35. Ne5 {[%clk 0:00:44.1]} 35... g5 {[%clk
0:00:18.1]} 36. g4 {[%clk 0:00:40.9]} 36... h4 {[%clk 0:00:13.6]} 37. Rd1 {[%clk
0:00:35]} 37... c6 {[%clk 0:00:13.8]} 38. Nf7 {[%clk 0:00:32.3]} 38... Kc7
{[%clk 0:00:13.5]} 39. Nxg5 {[%clk 0:00:30.7]} 39... Nd5 {[%clk 0:00:13.1]} 40.
Re1 {[%clk 0:00:27.3]} 40... Rc2+ {[%clk 0:00:11.9]} 41. Kd4 {[%clk 0:00:25.6]}
41... Ra2 {[%clk 0:00:10.9]} 42. Ne6+ {[%clk 0:00:21.7]} 42... Kb6 {[%clk
0:00:10.7]} 43. g5 {[%clk 0:00:18.8]} 43... Rxa3 {[%clk 0:00:11.1]} 44. Rg1
{[%clk 0:00:18.9]} 44... Rxh3 {[%clk 0:00:11]} 45. g6 {[%clk 0:00:18]} 45... Rg3
{[%clk 0:00:11.3]} 46. Rxg3 {[%clk 0:00:16.9]} 46... hxg3 {[%clk 0:00:12.2]} 47.
g7 {[%clk 0:00:17.2]} 47... Ne7 {[%clk 0:00:12.4]} 48. Nf4 {[%clk 0:00:17.6]}
48... Nf5+ {[%clk 0:00:12.2]} 49. Ke4 {[%clk 0:00:16.4]} 49... Nxg7 {[%clk
0:00:13.1]} 50. Kf3 {[%clk 0:00:16.5]} 50... Kb5 {[%clk 0:00:13.2]} 51. Kxg3
{[%clk 0:00:17.4]} 51... Kxb4 {[%clk 0:00:13.4]} 52. Kf3 {[%clk 0:00:18.3]}
52... a5 {[%clk 0:00:13.7]} 53. Ke4 {[%clk 0:00:19.2]} 53... a4 {[%clk
0:00:13.3]} 54. Nd3+ {[%clk 0:00:20.1]} 54... Kc3 {[%clk 0:00:12.7]} 55. Nc5
{[%clk 0:00:20.6]} 55... b5 {[%clk 0:00:12.9]} 56. Ke3 {[%clk 0:00:19.4]} 56...
a3 {[%clk 0:00:12.9]} 57. Ne4+ {[%clk 0:00:20.3]} 57... Kc2 {[%clk 0:00:12.4]}
58. Kd4 {[%clk 0:00:19.2]} 58... Nf5+ {[%clk 0:00:12]} 59. Kc5 {[%clk
0:00:20.1]} 59... a2 {[%clk 0:00:12.2]} 60. Kxc6 {[%clk 0:00:21]} 60... a1=Q
{[%clk 0:00:12.3]} 61. Kxb5 {[%clk 0:00:21.9]} 61... Qe5+ {[%clk 0:00:11.2]} 62.
Nc5 {[%clk 0:00:22.8]} 62... Nd4+ {[%clk 0:00:11.3]} 63. Kc4 {[%clk 0:00:23.7]}
63... Ne2 {[%clk 0:00:09.5]} 64. Na4 {[%clk 0:00:24.6]} 64... Qd4+ {[%clk
0:00:08.8]} 65. Kb5 {[%clk 0:00:23.8]} 65... Nc3+ {[%clk 0:00:08.6]} 66. Nxc3
{[%clk 0:00:21.8]} 66... Kxc3 {[%clk 0:00:09.5]} 67. Ka6 {[%clk 0:00:20.9]}
67... Qb4 {[%clk 0:00:08.8]} 0-1